{"text_format":"1","workbook":"xlsx","n_sheets":3,"sheets":["Январь","ТС","Сотрудники"],"not_rendered":{"charts":0,"images":0,"macros":1,"external_links":1,"defined_names":4,"comments":0,"pivot_tables":0},"unopened":[],"bounds":{"document_bytes":16777216,"sheet_cells":100000,"rows_first":2000,"rows_last":500,"rows_between":2000,"halvings":0,"cell_chars":16384,"cell_head_chars":4096},"cells_cut":0,"cells_raw":0,"read":"whole","date_system":"1900"}

{"sheet":"Январь","index":0,"n_rows":40,"n_cols":26,"rows_kept":40,"cut":false,"hidden":false,"merged":[[1,0,1,15],[2,0,2,15],[3,14,3,15]]}
[null,null,null,null,null,null,null,null,null,null,null,null,null,null,null,"Январь",null,null,null,null,null,null,null,"Экономия","Базовая норма расхода на 100 км","Базовая норма расхода на 1 мото/час"]
["Общество с ограниченной ответственностью  \"Втормет Царицыно\"",null,null,null,null,null,null,null,null,null,null,null,null,null,null,null,null,"1-я пол.",{"$f":"A7","v":"2018-01-01"},"2018-01-18",{"$f":"ТС!E5","v":500},{"$f":"SUMIFS(Январь[Выдано топливо, литр],Январь[Дата],\">=\"&$S$2,Январь[Дата],\"<=\"&$T$2)+IF(MONTH(T2)<>MONTH(S2),INDIRECT(TEXT(A7-1,\"ММММ\")&\"!F38\")-SUM(INDIRECT(TEXT(A7-1,\"ММММ\")&\"!V1:V2\")))+SUMIFS($U$7:$U$37,Январь[Дата],\">=\"&$S$2,Январь[Дата],\"<=\"&$T$2)+IF(MONTH(T2)<>MONTH(S2),INDIRECT(TEXT(A7-1,\"ММММ\")&\"!F38\")-SUM(INDIRECT(TEXT(A7-1,\"ММММ\")&\"!V1:V2\")))","v":330},{"$f":"IF(V2=0,0,(SUMIFS($N$7:$N$37,$A$7:$A$37,\">=\"&$S$2,$A$7:$A$37,\"<=\"&$T$2))/(V2-U2+G7))","v":1.0985000000000003},{"$f":"SUMIFS(Январь[Отклонение от нормы (Перерасход(+), экономия(-)), литр],Январь[Дата],\">=\"&$S$2,Январь[Дата],\"<=\"&$T$2)","v":-32.50500000000001},{"$f":"IF(Y4=\"Зима\",VLOOKUP(Z4,Расчет[[Номер гос.регистрации / Заводской номер]:[Итога норма а/м \"ЛЕТО\"]],8,FALSE),VLOOKUP(Z4,Расчет[[Номер гос.регистрации / Заводской номер]:[Итога норма а/м \"ЛЕТО\"]],9,FALSE))","v":51.546000000000006},{"$f":"IF(Y4=\"Зима\",VLOOKUP(Z4,Расчет[[Номер гос.регистрации / Заводской номер]:[Итога норма а/м \"ЛЕТО\"]],13,FALSE),VLOOKUP(Z4,Расчет[[Номер гос.регистрации / Заводской номер]:[Итога норма а/м \"ЛЕТО\"]],14,FALSE))","v":6.0500000000000007}]
["Отчет водителя ломовоза с манипулятором",null,null,null,null,null,null,null,null,null,null,null,null,null,null,null,null,"2-я пол.",{"$f":"T2+1","v":"2018-01-19"},{"$f":"INDEX(Январь[Дата],COUNT(Январь[Дата]))-T1","v":"2018-01-31"},{"$f":"ТС!E6","v":500},{"$f":"SUMIFS(Январь[Выдано топливо, литр],Январь[Дата],\">=\"&$S$3,Январь[Дата],\"<=\"&$T$3)+IF(MONTH(T3)<>MONTH(S3),INDIRECT(TEXT(A7-1,\"ММММ\")&\"!F38\")-SUM(INDIRECT(TEXT(A7-1,\"ММММ\")&\"!V1:V2\")))+SUMIFS($U$7:$U$37,Январь[Дата],\">=\"&$S$3,Январь[Дата],\"<=\"&$T$3)+IF(MONTH(T3)<>MONTH(S3),INDIRECT(TEXT(A7-1,\"ММММ\")&\"!F38\")-SUM(INDIRECT(TEXT(A7-1,\"ММММ\")&\"!V1:V2\")))","v":752},{"$f":"IF(V3=0,0,(SUMIFS($N$7:$N$37,$A$7:$A$37,\">=\"&$S$3,$A$7:$A$37,\"<=\"&$T$3))/(V3-U3+U3))","v":1.1010611702127659},{"$f":"SUMIFS(Январь[Отклонение от нормы (Перерасход(+), экономия(-)), литр],Январь[Дата],\">=\"&$S$3,Январь[Дата],\"<=\"&$T$3)","v":-75.997999999999976}]
[null,null,null,null,null,null,null,"за",2018,null,null,null,null,null,"т 056 вв 197",null,null,null,{"$f":"IF(INDEX(Январь[Дата],COUNT(Январь[Дата]))=T3,\"\",T3+1)","v":""},null,null,null,{"$f":"IFERROR(IF(S4=\"\",\"\",INDIRECT(TEXT(A7+40,\"ММММ\")&\"!W2\")),)","v":""},null,"Зима","Норма 1"]
[]
["Дата","ФИО водителя","Показание одометра машины на начало дня, км","Показание одометра машины на конец дня, км","Пройдено за день, км","Выдано топливо, литр","Остаток топлива в баке на начало дня, литр","Показание счетчика моточасов спецоборудования на начало дня, м/ч","Показание счетчика моточасов  спецоборудования на конец дня, м/ч","Работа спецоборудования за день, м/ч","Количество ходок","Расход топлива на работу спецоборудования, литр","Остаток топлива в баке на конец дня, литр","Расход топлива по норме, литр","Фактический расход топлива, литр","Отклонение от нормы (Перерасход(+), экономия(-)), литр",null,"Дата","Обнуление одометра, км","Пройдено за день, км","Выдано топливо, литр","Обнуление счетчика моточасов спецоборудования, м/ч","Работа спецоборудования за день, м/ч","Расход топлива по норме, литр","Фактический расход топлива, литр","Дата"]
[{"$f":"IFERROR(DATEVALUE((COUNT($A$6:A6)+1)&$P$1&$I$4),\"\")","v":"2018-01-01"},null,{"$f":"ТС!C5","v":209024},209024,{"$f":"Январь[[#This Row],[Показание одометра машины на конец дня, км]]-Январь[[#This Row],[Показание одометра машины на начало дня, км]]+T7","v":0},{"$f":"SUMPRODUCT([1]январь!$E$4:$E$153*([1]январь!$G$4:$G$153=$O$4)*([1]январь!$D$4:$D$153=Январь[[#This Row],[Дата]]))","v":0},{"$f":"ТС!E5","v":500},{"$f":"ТС!D5","v":620},620,{"$f":"IF(W7=\"\",Январь[[#This Row],[Показание счетчика моточасов  спецоборудования на конец дня, м/ч]],Январь[[#This Row],[Показание счетчика моточасов  спецоборудования на конец дня, м/ч]]+1)-Январь[[#This Row],[Показание счетчика моточасов спецоборудования на начало дня, м/ч]]","v":0},null,{"$f":"IF(Январь[[#This Row],[Работа спецоборудования за день, м/ч]]=\"\",\"\",Январь[[#This Row],[Работа спецоборудования за день, м/ч]]*$Z$2)","v":0},{"$f":"IF(VLOOKUP([Дата],S$2:U$3,3),IFERROR(IF(U7=\"\",Январь[[#This Row],[Выдано топливо, литр]],Январь[[#This Row],[Выдано топливо, литр]]+U7)+Январь[[#This Row],[Остаток топлива в баке на начало дня, литр]]-Январь[[#This Row],[Фактический расход топлива, литр]],\"\"),\"\")","v":500},{"$f":"ROUND((Январь[[#This Row],[Пройдено за день, км]]*0.01*$Y$2+Январь[[#This Row],[Расход топлива на работу спецоборудования, литр]]),3)+X7","v":0},{"$f":"ROUND(Январь[[#This Row],[Расход топлива по норме, литр]]/VLOOKUP([Дата],S$2:W$4,5),0)+Y7","v":0},{"$f":"IFERROR(Январь[[#This Row],[Фактический расход топлива, литр]]-Январь[[#This Row],[Расход топлива по норме, литр]],\"\")","v":0},null,{"$f":"Январь[[#This Row],[Дата]]","v":"2018-01-01"},null,null,null,null,null,null,null,{"$f":"Январь[[#This Row],[Дата]]","v":"2018-01-01"}]
[{"$f":"IFERROR(DATEVALUE((COUNT($A$6:A7)+1)&$P$1&$I$4),\"\")","v":"2018-01-02"},null,{"$f":"IFERROR(IF(INDIRECT(TEXT(A7,\"ММММ\")&\"!A7:A37\")=\"\",\"\",IF(S7=\"\",D7,S7)),\"\")","v":209024},209024,{"$f":"Январь[[#This Row],[Показание одометра машины на конец дня, км]]-Январь[[#This Row],[Показание одометра машины на начало дня, км]]+T8","v":0},{"$f":"SUMPRODUCT([1]январь!$E$4:$E$153*([1]январь!$G$4:$G$153=$O$4)*([1]январь!$D$4:$D$153=Январь[[#This Row],[Дата]]))","v":0},{"$f":"IF(Январь[[#This Row],[Дата]]=\"\",\"\",M7)","v":500},{"$f":"IFERROR(IF(INDIRECT(TEXT(A7,\"ММММ\")&\"!A7:A37\")=\"\",\"\",IF(V7=\"\",I7,V7)),\"\")","v":620},620,{"$f":"IF(W8=\"\",Январь[[#This Row],[Показание счетчика моточасов  спецоборудования на конец дня, м/ч]],Январь[[#This Row],[Показание счетчика моточасов  спецоборудования на конец дня, м/ч]]+1)-Январь[[#This Row],[Показание счетчика моточасов спецоборудования на начало дня, м/ч]]","v":0},null,{"$f":"IF(Январь[[#This Row],[Работа спецоборудования за день, м/ч]]=\"\",\"\",Январь[[#This Row],[Работа спецоборудования за день, м/ч]]*$Z$2)","v":0},{"$f":"IF(VLOOKUP([Дата],S$2:U$3,3),IFERROR(IF(U8=\"\",Январь[[#This Row],[Выдано топливо, литр]],Январь[[#This Row],[Выдано топливо, литр]]+U8)+Январь[[#This Row],[Остаток топлива в баке на начало дня, литр]]-Январь[[#This Row],[Фактический расход топлива, литр]],\"\"),\"\")","v":500},{"$f":"ROUND((Январь[[#This Row],[Пройдено за день, км]]*0.01*$Y$2+Январь[[#This Row],[Расход топлива на работу спецоборудования, литр]]),3)+X8","v":0},{"$f":"ROUND(Январь[[#This Row],[Расход топлива по норме, литр]]/VLOOKUP([Дата],S$2:W$4,5),0)+Y8","v":0},{"$f":"IFERROR(Январь[[#This Row],[Фактический расход топлива, литр]]-Январь[[#This Row],[Расход топлива по норме, литр]],\"\")","v":0},null,{"$f":"Январь[[#This Row],[Дата]]","v":"2018-01-02"},null,null,null,null,null,null,null,{"$f":"Январь[[#This Row],[Дата]]","v":"2018-01-02"}]
[{"$f":"IFERROR(DATEVALUE((COUNT($A$6:A8)+1)&$P$1&$I$4),\"\")","v":"2018-01-03"},null,{"$f":"IFERROR(IF(INDIRECT(TEXT(A8,\"ММММ\")&\"!A7:A37\")=\"\",\"\",IF(S8=\"\",D8,S8)),\"\")","v":209024},209024,{"$f":"Январь[[#This Row],[Показание одометра машины на конец дня, км]]-Январь[[#This Row],[Показание одометра машины на начало дня, км]]+T9","v":0},{"$f":"SUMPRODUCT([1]январь!$E$4:$E$153*([1]январь!$G$4:$G$153=$O$4)*([1]январь!$D$4:$D$153=Январь[[#This Row],[Дата]]))","v":0},{"$f":"IF(Январь[[#This Row],[Дата]]=\"\",\"\",M8)","v":500},{"$f":"IFERROR(IF(INDIRECT(TEXT(A8,\"ММММ\")&\"!A7:A37\")=\"\",\"\",IF(V8=\"\",I8,V8)),\"\")","v":620},620,{"$f":"IF(W9=\"\",Январь[[#This Row],[Показание счетчика моточасов  спецоборудования на конец дня, м/ч]],Январь[[#This Row],[Показание счетчика моточасов  спецоборудования на конец дня, м/ч]]+1)-Январь[[#This Row],[Показание счетчика моточасов спецоборудования на начало дня, м/ч]]","v":0},null,{"$f":"IF(Январь[[#This Row],[Работа спецоборудования за день, м/ч]]=\"\",\"\",Январь[[#This Row],[Работа спецоборудования за день, м/ч]]*$Z$2)","v":0},{"$f":"IF(VLOOKUP([Дата],S$2:U$3,3),IFERROR(IF(U9=\"\",Январь[[#This Row],[Выдано топливо, литр]],Январь[[#This Row],[Выдано топливо, литр]]+U9)+Январь[[#This Row],[Остаток топлива в баке на начало дня, литр]]-Январь[[#This Row],[Фактический расход топлива, литр]],\"\"),\"\")","v":500},{"$f":"ROUND((Январь[[#This Row],[Пройдено за день, км]]*0.01*$Y$2+Январь[[#This Row],[Расход топлива на работу спецоборудования, литр]]),3)+X9","v":0},{"$f":"ROUND(Январь[[#This Row],[Расход топлива по норме, литр]]/VLOOKUP([Дата],S$2:W$4,5),0)+Y9","v":0},{"$f":"IFERROR(Январь[[#This Row],[Фактический расход топлива, литр]]-Январь[[#This Row],[Расход топлива по норме, литр]],\"\")","v":0},null,{"$f":"Январь[[#This Row],[Дата]]","v":"2018-01-03"},null,null,null,null,null,null,null,{"$f":"Январь[[#This Row],[Дата]]","v":"2018-01-03"}]
[{"$f":"IFERROR(DATEVALUE((COUNT($A$6:A9)+1)&$P$1&$I$4),\"\")","v":"2018-01-04"},null,209024,209024,{"$f":"Январь[[#This Row],[Показание одометра машины на конец дня, км]]-Январь[[#This Row],[Показание одометра машины на начало дня, км]]+T10","v":0},{"$f":"SUMPRODUCT([1]январь!$E$4:$E$153*([1]январь!$G$4:$G$153=$O$4)*([1]январь!$D$4:$D$153=Январь[[#This Row],[Дата]]))","v":0},{"$f":"IF(Январь[[#This Row],[Дата]]=\"\",\"\",M9)","v":500},620,620,{"$f":"IF(W10=\"\",Январь[[#This Row],[Показание счетчика моточасов  спецоборудования на конец дня, м/ч]],Январь[[#This Row],[Показание счетчика моточасов  спецоборудования на конец дня, м/ч]]+1)-Январь[[#This Row],[Показание счетчика моточасов спецоборудования на начало дня, м/ч]]","v":0},null,{"$f":"IF(Январь[[#This Row],[Работа спецоборудования за день, м/ч]]=\"\",\"\",Январь[[#This Row],[Работа спецоборудования за день, м/ч]]*$Z$2)","v":0},{"$f":"IF(VLOOKUP([Дата],S$2:U$3,3),IFERROR(IF(U10=\"\",Январь[[#This Row],[Выдано топливо, литр]],Январь[[#This Row],[Выдано топливо, литр]]+U10)+Январь[[#This Row],[Остаток топлива в баке на начало дня, литр]]-Январь[[#This Row],[Фактический расход топлива, литр]],\"\"),\"\")","v":500},{"$f":"ROUND((Январь[[#This Row],[Пройдено за день, км]]*0.01*$Y$2+Январь[[#This Row],[Расход топлива на работу спецоборудования, литр]]),3)+X10","v":0},{"$f":"ROUND(Январь[[#This Row],[Расход топлива по норме, литр]]/VLOOKUP([Дата],S$2:W$4,5),0)+Y10","v":0},{"$f":"IFERROR(Январь[[#This Row],[Фактический расход топлива, литр]]-Январь[[#This Row],[Расход топлива по норме, литр]],\"\")","v":0},null,{"$f":"Январь[[#This Row],[Дата]]","v":"2018-01-04"},null,null,null,null,null,null,null,{"$f":"Январь[[#This Row],[Дата]]","v":"2018-01-04"}]
[{"$f":"IFERROR(DATEVALUE((COUNT($A$6:A10)+1)&$P$1&$I$4),\"\")","v":"2018-01-05"},null,209024,209024,{"$f":"Январь[[#This Row],[Показание одометра машины на конец дня, км]]-Январь[[#This Row],[Показание одометра машины на начало дня, км]]+T11","v":0},{"$f":"SUMPRODUCT([1]январь!$E$4:$E$153*([1]январь!$G$4:$G$153=$O$4)*([1]январь!$D$4:$D$153=Январь[[#This Row],[Дата]]))","v":0},{"$f":"IF(Январь[[#This Row],[Дата]]=\"\",\"\",M10)","v":500},620,620,{"$f":"IF(W11=\"\",Январь[[#This Row],[Показание счетчика моточасов  спецоборудования на конец дня, м/ч]],Январь[[#This Row],[Показание счетчика моточасов  спецоборудования на конец дня, м/ч]]+1)-Январь[[#This Row],[Показание счетчика моточасов спецоборудования на начало дня, м/ч]]","v":0},null,{"$f":"IF(Январь[[#This Row],[Работа спецоборудования за день, м/ч]]=\"\",\"\",Январь[[#This Row],[Работа спецоборудования за день, м/ч]]*$Z$2)","v":0},{"$f":"IF(VLOOKUP([Дата],S$2:U$3,3),IFERROR(IF(U11=\"\",Январь[[#This Row],[Выдано топливо, литр]],Январь[[#This Row],[Выдано топливо, литр]]+U11)+Январь[[#This Row],[Остаток топлива в баке на начало дня, литр]]-Январь[[#This Row],[Фактический расход топлива, литр]],\"\"),\"\")","v":500},{"$f":"ROUND((Январь[[#This Row],[Пройдено за день, км]]*0.01*$Y$2+Январь[[#This Row],[Расход топлива на работу спецоборудования, литр]]),3)+X11","v":0},{"$f":"ROUND(Январь[[#This Row],[Расход топлива по норме, литр]]/VLOOKUP([Дата],S$2:W$4,5),0)+Y11","v":0},{"$f":"IFERROR(Январь[[#This Row],[Фактический расход топлива, литр]]-Январь[[#This Row],[Расход топлива по норме, литр]],\"\")","v":0},null,{"$f":"Январь[[#This Row],[Дата]]","v":"2018-01-05"},null,null,null,null,null,null,null,{"$f":"Январь[[#This Row],[Дата]]","v":"2018-01-05"}]
[{"$f":"IFERROR(DATEVALUE((COUNT($A$6:A11)+1)&$P$1&$I$4),\"\")","v":"2018-01-06"},null,209024,209024,{"$f":"Январь[[#This Row],[Показание одометра машины на конец дня, км]]-Январь[[#This Row],[Показание одометра машины на начало дня, км]]+T12","v":0},{"$f":"SUMPRODUCT([1]январь!$E$4:$E$153*([1]январь!$G$4:$G$153=$O$4)*([1]январь!$D$4:$D$153=Январь[[#This Row],[Дата]]))","v":0},{"$f":"IF(Январь[[#This Row],[Дата]]=\"\",\"\",M11)","v":500},620,620,{"$f":"IF(W12=\"\",Январь[[#This Row],[Показание счетчика моточасов  спецоборудования на конец дня, м/ч]],Январь[[#This Row],[Показание счетчика моточасов  спецоборудования на конец дня, м/ч]]+1)-Январь[[#This Row],[Показание счетчика моточасов спецоборудования на начало дня, м/ч]]","v":0},null,{"$f":"IF(Январь[[#This Row],[Работа спецоборудования за день, м/ч]]=\"\",\"\",Январь[[#This Row],[Работа спецоборудования за день, м/ч]]*$Z$2)","v":0},{"$f":"IF(VLOOKUP([Дата],S$2:U$3,3),IFERROR(IF(U12=\"\",Январь[[#This Row],[Выдано топливо, литр]],Январь[[#This Row],[Выдано топливо, литр]]+U12)+Январь[[#This Row],[Остаток топлива в баке на начало дня, литр]]-Январь[[#This Row],[Фактический расход топлива, литр]],\"\"),\"\")","v":500},{"$f":"ROUND((Январь[[#This Row],[Пройдено за день, км]]*0.01*$Y$2+Январь[[#This Row],[Расход топлива на работу спецоборудования, литр]]),3)+X12","v":0},{"$f":"ROUND(Январь[[#This Row],[Расход топлива по норме, литр]]/VLOOKUP([Дата],S$2:W$4,5),0)+Y12","v":0},{"$f":"IFERROR(Январь[[#This Row],[Фактический расход топлива, литр]]-Январь[[#This Row],[Расход топлива по норме, литр]],\"\")","v":0},null,{"$f":"Январь[[#This Row],[Дата]]","v":"2018-01-06"},null,null,null,null,null,null,null,{"$f":"Январь[[#This Row],[Дата]]","v":"2018-01-06"}]
[{"$f":"IFERROR(DATEVALUE((COUNT($A$6:A12)+1)&$P$1&$I$4),\"\")","v":"2018-01-07"},null,209024,209024,{"$f":"Январь[[#This Row],[Показание одометра машины на конец дня, км]]-Январь[[#This Row],[Показание одометра машины на начало дня, км]]+T13","v":0},{"$f":"SUMPRODUCT([1]январь!$E$4:$E$153*([1]январь!$G$4:$G$153=$O$4)*([1]январь!$D$4:$D$153=Январь[[#This Row],[Дата]]))","v":0},{"$f":"IF(Январь[[#This Row],[Дата]]=\"\",\"\",M12)","v":500},620,620,{"$f":"IF(W13=\"\",Январь[[#This Row],[Показание счетчика моточасов  спецоборудования на конец дня, м/ч]],Январь[[#This Row],[Показание счетчика моточасов  спецоборудования на конец дня, м/ч]]+1)-Январь[[#This Row],[Показание счетчика моточасов спецоборудования на начало дня, м/ч]]","v":0},null,{"$f":"IF(Январь[[#This Row],[Работа спецоборудования за день, м/ч]]=\"\",\"\",Январь[[#This Row],[Работа спецоборудования за день, м/ч]]*$Z$2)","v":0},{"$f":"IF(VLOOKUP([Дата],S$2:U$3,3),IFERROR(IF(U13=\"\",Январь[[#This Row],[Выдано топливо, литр]],Январь[[#This Row],[Выдано топливо, литр]]+U13)+Январь[[#This Row],[Остаток топлива в баке на начало дня, литр]]-Январь[[#This Row],[Фактический расход топлива, литр]],\"\"),\"\")","v":500},{"$f":"ROUND((Январь[[#This Row],[Пройдено за день, км]]*0.01*$Y$2+Январь[[#This Row],[Расход топлива на работу спецоборудования, литр]]),3)+X13","v":0},{"$f":"ROUND(Январь[[#This Row],[Расход топлива по норме, литр]]/VLOOKUP([Дата],S$2:W$4,5),0)+Y13","v":0},{"$f":"IFERROR(Январь[[#This Row],[Фактический расход топлива, литр]]-Январь[[#This Row],[Расход топлива по норме, литр]],\"\")","v":0},null,{"$f":"Январь[[#This Row],[Дата]]","v":"2018-01-07"},null,null,null,null,null,null,null,{"$f":"Январь[[#This Row],[Дата]]","v":"2018-01-07"}]
[{"$f":"IFERROR(DATEVALUE((COUNT($A$6:A13)+1)&$P$1&$I$4),\"\")","v":"2018-01-08"},null,209024,209024,{"$f":"Январь[[#This Row],[Показание одометра машины на конец дня, км]]-Январь[[#This Row],[Показание одометра машины на начало дня, км]]+T14","v":0},{"$f":"SUMPRODUCT([1]январь!$E$4:$E$153*([1]январь!$G$4:$G$153=$O$4)*([1]январь!$D$4:$D$153=Январь[[#This Row],[Дата]]))","v":0},{"$f":"IF(Январь[[#This Row],[Дата]]=\"\",\"\",M13)","v":500},620,620,{"$f":"IF(W14=\"\",Январь[[#This Row],[Показание счетчика моточасов  спецоборудования на конец дня, м/ч]],Январь[[#This Row],[Показание счетчика моточасов  спецоборудования на конец дня, м/ч]]+1)-Январь[[#This Row],[Показание счетчика моточасов спецоборудования на начало дня, м/ч]]","v":0},null,{"$f":"IF(Январь[[#This Row],[Работа спецоборудования за день, м/ч]]=\"\",\"\",Январь[[#This Row],[Работа спецоборудования за день, м/ч]]*$Z$2)","v":0},{"$f":"IF(VLOOKUP([Дата],S$2:U$3,3),IFERROR(IF(U14=\"\",Январь[[#This Row],[Выдано топливо, литр]],Январь[[#This Row],[Выдано топливо, литр]]+U14)+Январь[[#This Row],[Остаток топлива в баке на начало дня, литр]]-Январь[[#This Row],[Фактический расход топлива, литр]],\"\"),\"\")","v":500},{"$f":"ROUND((Январь[[#This Row],[Пройдено за день, км]]*0.01*$Y$2+Январь[[#This Row],[Расход топлива на работу спецоборудования, литр]]),3)+X14","v":0},{"$f":"ROUND(Январь[[#This Row],[Расход топлива по норме, литр]]/VLOOKUP([Дата],S$2:W$4,5),0)+Y14","v":0},{"$f":"IFERROR(Январь[[#This Row],[Фактический расход топлива, литр]]-Январь[[#This Row],[Расход топлива по норме, литр]],\"\")","v":0},null,{"$f":"Январь[[#This Row],[Дата]]","v":"2018-01-08"},null,null,null,null,null,null,null,{"$f":"Январь[[#This Row],[Дата]]","v":"2018-01-08"}]
[{"$f":"IFERROR(DATEVALUE((COUNT($A$6:A14)+1)&$P$1&$I$4),\"\")","v":"2018-01-09"},null,209024,209024,{"$f":"Январь[[#This Row],[Показание одометра машины на конец дня, км]]-Январь[[#This Row],[Показание одометра машины на начало дня, км]]+T15","v":0},{"$f":"SUMPRODUCT([1]январь!$E$4:$E$153*([1]январь!$G$4:$G$153=$O$4)*([1]январь!$D$4:$D$153=Январь[[#This Row],[Дата]]))","v":0},{"$f":"IF(Январь[[#This Row],[Дата]]=\"\",\"\",M14)","v":500},620,620,{"$f":"IF(W15=\"\",Январь[[#This Row],[Показание счетчика моточасов  спецоборудования на конец дня, м/ч]],Январь[[#This Row],[Показание счетчика моточасов  спецоборудования на конец дня, м/ч]]+1)-Январь[[#This Row],[Показание счетчика моточасов спецоборудования на начало дня, м/ч]]","v":0},0,{"$f":"IF(Январь[[#This Row],[Работа спецоборудования за день, м/ч]]=\"\",\"\",Январь[[#This Row],[Работа спецоборудования за день, м/ч]]*$Z$2)","v":0},{"$f":"IF(VLOOKUP([Дата],S$2:U$3,3),IFERROR(IF(U15=\"\",Январь[[#This Row],[Выдано топливо, литр]],Январь[[#This Row],[Выдано топливо, литр]]+U15)+Январь[[#This Row],[Остаток топлива в баке на начало дня, литр]]-Январь[[#This Row],[Фактический расход топлива, литр]],\"\"),\"\")","v":500},{"$f":"ROUND((Январь[[#This Row],[Пройдено за день, км]]*0.01*$Y$2+Январь[[#This Row],[Расход топлива на работу спецоборудования, литр]]),3)+X15","v":0},{"$f":"ROUND(Январь[[#This Row],[Расход топлива по норме, литр]]/VLOOKUP([Дата],S$2:W$4,5),0)+Y15","v":0},{"$f":"IFERROR(Январь[[#This Row],[Фактический расход топлива, литр]]-Январь[[#This Row],[Расход топлива по норме, литр]],\"\")","v":0},null,{"$f":"Январь[[#This Row],[Дата]]","v":"2018-01-09"},null,null,null,null,null,null,null,{"$f":"Январь[[#This Row],[Дата]]","v":"2018-01-09"}]
[{"$f":"IFERROR(DATEVALUE((COUNT($A$6:A15)+1)&$P$1&$I$4),\"\")","v":"2018-01-10"},"Никляев В.А.",209024,209059,{"$f":"Январь[[#This Row],[Показание одометра машины на конец дня, км]]-Январь[[#This Row],[Показание одометра машины на начало дня, км]]+T16","v":35},{"$f":"SUMPRODUCT([1]январь!$E$4:$E$153*([1]январь!$G$4:$G$153=$O$4)*([1]январь!$D$4:$D$153=Январь[[#This Row],[Дата]]))","v":0},{"$f":"IF(Январь[[#This Row],[Дата]]=\"\",\"\",M15)","v":500},620,620,{"$f":"IF(W16=\"\",Январь[[#This Row],[Показание счетчика моточасов  спецоборудования на конец дня, м/ч]],Январь[[#This Row],[Показание счетчика моточасов  спецоборудования на конец дня, м/ч]]+1)-Январь[[#This Row],[Показание счетчика моточасов спецоборудования на начало дня, м/ч]]","v":0},1,{"$f":"IF(Январь[[#This Row],[Работа спецоборудования за день, м/ч]]=\"\",\"\",Январь[[#This Row],[Работа спецоборудования за день, м/ч]]*$Z$2)","v":0},{"$f":"IF(VLOOKUP([Дата],S$2:U$3,3),IFERROR(IF(U16=\"\",Январь[[#This Row],[Выдано топливо, литр]],Январь[[#This Row],[Выдано топливо, литр]]+U16)+Январь[[#This Row],[Остаток топлива в баке на начало дня, литр]]-Январь[[#This Row],[Фактический расход топлива, литр]],\"\"),\"\")","v":484},{"$f":"ROUND((Январь[[#This Row],[Пройдено за день, км]]*0.01*$Y$2+Январь[[#This Row],[Расход топлива на работу спецоборудования, литр]]),3)+X16","v":18.041},{"$f":"ROUND(Январь[[#This Row],[Расход топлива по норме, литр]]/VLOOKUP([Дата],S$2:W$4,5),0)+Y16","v":16},{"$f":"IFERROR(Январь[[#This Row],[Фактический расход топлива, литр]]-Январь[[#This Row],[Расход топлива по норме, литр]],\"\")","v":-2.0410000000000004},null,{"$f":"Январь[[#This Row],[Дата]]","v":"2018-01-10"},null,null,null,null,null,null,null,{"$f":"Январь[[#This Row],[Дата]]","v":"2018-01-10"}]
[{"$f":"IFERROR(DATEVALUE((COUNT($A$6:A16)+1)&$P$1&$I$4),\"\")","v":"2018-01-11"},"Никляев В.А.",209059,209084,{"$f":"Январь[[#This Row],[Показание одометра машины на конец дня, км]]-Январь[[#This Row],[Показание одометра машины на начало дня, км]]+T17","v":25},{"$f":"SUMPRODUCT([1]январь!$E$4:$E$153*([1]январь!$G$4:$G$153=$O$4)*([1]январь!$D$4:$D$153=Январь[[#This Row],[Дата]]))","v":0},{"$f":"IF(Январь[[#This Row],[Дата]]=\"\",\"\",M16)","v":484},620,622,{"$f":"IF(W17=\"\",Январь[[#This Row],[Показание счетчика моточасов  спецоборудования на конец дня, м/ч]],Январь[[#This Row],[Показание счетчика моточасов  спецоборудования на конец дня, м/ч]]+1)-Январь[[#This Row],[Показание счетчика моточасов спецоборудования на начало дня, м/ч]]","v":2},1,{"$f":"IF(Январь[[#This Row],[Работа спецоборудования за день, м/ч]]=\"\",\"\",Январь[[#This Row],[Работа спецоборудования за день, м/ч]]*$Z$2)","v":12.100000000000001},{"$f":"IF(VLOOKUP([Дата],S$2:U$3,3),IFERROR(IF(U17=\"\",Январь[[#This Row],[Выдано топливо, литр]],Январь[[#This Row],[Выдано топливо, литр]]+U17)+Январь[[#This Row],[Остаток топлива в баке на начало дня, литр]]-Январь[[#This Row],[Фактический расход топлива, литр]],\"\"),\"\")","v":461},{"$f":"ROUND((Январь[[#This Row],[Пройдено за день, км]]*0.01*$Y$2+Январь[[#This Row],[Расход топлива на работу спецоборудования, литр]]),3)+X17","v":24.986999999999998},{"$f":"ROUND(Январь[[#This Row],[Расход топлива по норме, литр]]/VLOOKUP([Дата],S$2:W$4,5),0)+Y17","v":23},{"$f":"IFERROR(Январь[[#This Row],[Фактический расход топлива, литр]]-Январь[[#This Row],[Расход топлива по норме, литр]],\"\")","v":-1.9869999999999983},null,{"$f":"Январь[[#This Row],[Дата]]","v":"2018-01-11"},null,null,null,null,null,null,null,{"$f":"Январь[[#This Row],[Дата]]","v":"2018-01-11"}]
[{"$f":"IFERROR(DATEVALUE((COUNT($A$6:A17)+1)&$P$1&$I$4),\"\")","v":"2018-01-12"},"Никляев В.А.",209084,209111,{"$f":"Январь[[#This Row],[Показание одометра машины на конец дня, км]]-Январь[[#This Row],[Показание одометра машины на начало дня, км]]+T18","v":27},{"$f":"SUMPRODUCT([1]январь!$E$4:$E$153*([1]январь!$G$4:$G$153=$O$4)*([1]январь!$D$4:$D$153=Январь[[#This Row],[Дата]]))","v":0},{"$f":"IF(Январь[[#This Row],[Дата]]=\"\",\"\",M17)","v":461},622,624,{"$f":"IF(W18=\"\",Январь[[#This Row],[Показание счетчика моточасов  спецоборудования на конец дня, м/ч]],Январь[[#This Row],[Показание счетчика моточасов  спецоборудования на конец дня, м/ч]]+1)-Январь[[#This Row],[Показание счетчика моточасов спецоборудования на начало дня, м/ч]]","v":2},1,{"$f":"IF(Январь[[#This Row],[Работа спецоборудования за день, м/ч]]=\"\",\"\",Январь[[#This Row],[Работа спецоборудования за день, м/ч]]*$Z$2)","v":12.100000000000001},{"$f":"IF(VLOOKUP([Дата],S$2:U$3,3),IFERROR(IF(U18=\"\",Январь[[#This Row],[Выдано топливо, литр]],Январь[[#This Row],[Выдано топливо, литр]]+U18)+Январь[[#This Row],[Остаток топлива в баке на начало дня, литр]]-Январь[[#This Row],[Фактический расход топлива, литр]],\"\"),\"\")","v":437},{"$f":"ROUND((Январь[[#This Row],[Пройдено за день, км]]*0.01*$Y$2+Январь[[#This Row],[Расход топлива на работу спецоборудования, литр]]),3)+X18","v":26.016999999999999},{"$f":"ROUND(Январь[[#This Row],[Расход топлива по норме, литр]]/VLOOKUP([Дата],S$2:W$4,5),0)+Y18","v":24},{"$f":"IFERROR(Январь[[#This Row],[Фактический расход топлива, литр]]-Январь[[#This Row],[Расход топлива по норме, литр]],\"\")","v":-2.0169999999999995},null,{"$f":"Январь[[#This Row],[Дата]]","v":"2018-01-12"},null,null,null,null,null,null,null,{"$f":"Январь[[#This Row],[Дата]]","v":"2018-01-12"}]
[{"$f":"IFERROR(DATEVALUE((COUNT($A$6:A18)+1)&$P$1&$I$4),\"\")","v":"2018-01-13"},"Никляев В.А.",209111,209168,{"$f":"Январь[[#This Row],[Показание одометра машины на конец дня, км]]-Январь[[#This Row],[Показание одометра машины на начало дня, км]]+T19","v":57},{"$f":"SUMPRODUCT([1]январь!$E$4:$E$153*([1]январь!$G$4:$G$153=$O$4)*([1]январь!$D$4:$D$153=Январь[[#This Row],[Дата]]))","v":0},{"$f":"IF(Январь[[#This Row],[Дата]]=\"\",\"\",M18)","v":437},624,626,{"$f":"IF(W19=\"\",Январь[[#This Row],[Показание счетчика моточасов  спецоборудования на конец дня, м/ч]],Январь[[#This Row],[Показание счетчика моточасов  спецоборудования на конец дня, м/ч]]+1)-Январь[[#This Row],[Показание счетчика моточасов спецоборудования на начало дня, м/ч]]","v":2},1,{"$f":"IF(Январь[[#This Row],[Работа спецоборудования за день, м/ч]]=\"\",\"\",Январь[[#This Row],[Работа спецоборудования за день, м/ч]]*$Z$2)","v":12.100000000000001},{"$f":"IF(VLOOKUP([Дата],S$2:U$3,3),IFERROR(IF(U19=\"\",Январь[[#This Row],[Выдано топливо, литр]],Январь[[#This Row],[Выдано топливо, литр]]+U19)+Январь[[#This Row],[Остаток топлива в баке на начало дня, литр]]-Январь[[#This Row],[Фактический расход топлива, литр]],\"\"),\"\")","v":399},{"$f":"ROUND((Январь[[#This Row],[Пройдено за день, км]]*0.01*$Y$2+Январь[[#This Row],[Расход топлива на работу спецоборудования, литр]]),3)+X19","v":41.481000000000002},{"$f":"ROUND(Январь[[#This Row],[Расход топлива по норме, литр]]/VLOOKUP([Дата],S$2:W$4,5),0)+Y19","v":38},{"$f":"IFERROR(Январь[[#This Row],[Фактический расход топлива, литр]]-Январь[[#This Row],[Расход топлива по норме, литр]],\"\")","v":-3.4810000000000016},null,{"$f":"Январь[[#This Row],[Дата]]","v":"2018-01-13"},null,null,null,null,null,null,null,{"$f":"Январь[[#This Row],[Дата]]","v":"2018-01-13"}]
[{"$f":"IFERROR(DATEVALUE((COUNT($A$6:A19)+1)&$P$1&$I$4),\"\")","v":"2018-01-14"},"Никляев В.А.",209168,209208,{"$f":"Январь[[#This Row],[Показание одометра машины на конец дня, км]]-Январь[[#This Row],[Показание одометра машины на начало дня, км]]+T20","v":40},{"$f":"SUMPRODUCT([1]январь!$E$4:$E$153*([1]январь!$G$4:$G$153=$O$4)*([1]январь!$D$4:$D$153=Январь[[#This Row],[Дата]]))","v":0},{"$f":"IF(Январь[[#This Row],[Дата]]=\"\",\"\",M19)","v":399},626,628,{"$f":"IF(W20=\"\",Январь[[#This Row],[Показание счетчика моточасов  спецоборудования на конец дня, м/ч]],Январь[[#This Row],[Показание счетчика моточасов  спецоборудования на конец дня, м/ч]]+1)-Январь[[#This Row],[Показание счетчика моточасов спецоборудования на начало дня, м/ч]]","v":2},1,{"$f":"IF(Январь[[#This Row],[Работа спецоборудования за день, м/ч]]=\"\",\"\",Январь[[#This Row],[Работа спецоборудования за день, м/ч]]*$Z$2)","v":12.100000000000001},{"$f":"IF(VLOOKUP([Дата],S$2:U$3,3),IFERROR(IF(U20=\"\",Январь[[#This Row],[Выдано топливо, литр]],Январь[[#This Row],[Выдано топливо, литр]]+U20)+Январь[[#This Row],[Остаток топлива в баке на начало дня, литр]]-Январь[[#This Row],[Фактический расход топлива, литр]],\"\"),\"\")","v":369},{"$f":"ROUND((Январь[[#This Row],[Пройдено за день, км]]*0.01*$Y$2+Январь[[#This Row],[Расход топлива на работу спецоборудования, литр]]),3)+X20","v":32.718000000000004},{"$f":"ROUND(Январь[[#This Row],[Расход топлива по норме, литр]]/VLOOKUP([Дата],S$2:W$4,5),0)+Y20","v":30},{"$f":"IFERROR(Январь[[#This Row],[Фактический расход топлива, литр]]-Январь[[#This Row],[Расход топлива по норме, литр]],\"\")","v":-2.7180000000000035},null,{"$f":"Январь[[#This Row],[Дата]]","v":"2018-01-14"},null,null,null,null,null,null,null,{"$f":"Январь[[#This Row],[Дата]]","v":"2018-01-14"}]
[{"$f":"IFERROR(DATEVALUE((COUNT($A$6:A20)+1)&$P$1&$I$4),\"\")","v":"2018-01-15"},"Никляев В.А.",209208,209221,{"$f":"Январь[[#This Row],[Показание одометра машины на конец дня, км]]-Январь[[#This Row],[Показание одометра машины на начало дня, км]]+T21","v":13},{"$f":"SUMPRODUCT([1]январь!$E$4:$E$153*([1]январь!$G$4:$G$153=$O$4)*([1]январь!$D$4:$D$153=Январь[[#This Row],[Дата]]))","v":0},{"$f":"IF(Январь[[#This Row],[Дата]]=\"\",\"\",M20)","v":369},628,630,{"$f":"IF(W21=\"\",Январь[[#This Row],[Показание счетчика моточасов  спецоборудования на конец дня, м/ч]],Январь[[#This Row],[Показание счетчика моточасов  спецоборудования на конец дня, м/ч]]+1)-Январь[[#This Row],[Показание счетчика моточасов спецоборудования на начало дня, м/ч]]","v":2},1,{"$f":"IF(Январь[[#This Row],[Работа спецоборудования за день, м/ч]]=\"\",\"\",Январь[[#This Row],[Работа спецоборудования за день, м/ч]]*$Z$2)","v":12.100000000000001},{"$f":"IF(VLOOKUP([Дата],S$2:U$3,3),IFERROR(IF(U21=\"\",Январь[[#This Row],[Выдано топливо, литр]],Январь[[#This Row],[Выдано топливо, литр]]+U21)+Январь[[#This Row],[Остаток топлива в баке на начало дня, литр]]-Январь[[#This Row],[Фактический расход топлива, литр]],\"\"),\"\")","v":352},{"$f":"ROUND((Январь[[#This Row],[Пройдено за день, км]]*0.01*$Y$2+Январь[[#This Row],[Расход топлива на работу спецоборудования, литр]]),3)+X21","v":18.800999999999998},{"$f":"ROUND(Январь[[#This Row],[Расход топлива по норме, литр]]/VLOOKUP([Дата],S$2:W$4,5),0)+Y21","v":17},{"$f":"IFERROR(Январь[[#This Row],[Фактический расход топлива, литр]]-Январь[[#This Row],[Расход топлива по норме, литр]],\"\")","v":-1.8009999999999984},null,{"$f":"Январь[[#This Row],[Дата]]","v":"2018-01-15"},null,null,null,null,null,null,null,{"$f":"Январь[[#This Row],[Дата]]","v":"2018-01-15"}]
[{"$f":"IFERROR(DATEVALUE((COUNT($A$6:A21)+1)&$P$1&$I$4),\"\")","v":"2018-01-16"},"Никляев В.А.",209221,209236,{"$f":"Январь[[#This Row],[Показание одометра машины на конец дня, км]]-Январь[[#This Row],[Показание одометра машины на начало дня, км]]+T22","v":15},{"$f":"SUMPRODUCT([1]январь!$E$4:$E$153*([1]январь!$G$4:$G$153=$O$4)*([1]январь!$D$4:$D$153=Январь[[#This Row],[Дата]]))","v":0},{"$f":"IF(Январь[[#This Row],[Дата]]=\"\",\"\",M21)","v":352},630,633,{"$f":"IF(W22=\"\",Январь[[#This Row],[Показание счетчика моточасов  спецоборудования на конец дня, м/ч]],Январь[[#This Row],[Показание счетчика моточасов  спецоборудования на конец дня, м/ч]]+1)-Январь[[#This Row],[Показание счетчика моточасов спецоборудования на начало дня, м/ч]]","v":3},2,{"$f":"IF(Январь[[#This Row],[Работа спецоборудования за день, м/ч]]=\"\",\"\",Январь[[#This Row],[Работа спецоборудования за день, м/ч]]*$Z$2)","v":18.150000000000002},{"$f":"IF(VLOOKUP([Дата],S$2:U$3,3),IFERROR(IF(U22=\"\",Январь[[#This Row],[Выдано топливо, литр]],Январь[[#This Row],[Выдано топливо, литр]]+U22)+Январь[[#This Row],[Остаток топлива в баке на начало дня, литр]]-Январь[[#This Row],[Фактический расход топлива, литр]],\"\"),\"\")","v":328},{"$f":"ROUND((Январь[[#This Row],[Пройдено за день, км]]*0.01*$Y$2+Январь[[#This Row],[Расход топлива на работу спецоборудования, литр]]),3)+X22","v":25.882000000000001},{"$f":"ROUND(Январь[[#This Row],[Расход топлива по норме, литр]]/VLOOKUP([Дата],S$2:W$4,5),0)+Y22","v":24},{"$f":"IFERROR(Январь[[#This Row],[Фактический расход топлива, литр]]-Январь[[#This Row],[Расход топлива по норме, литр]],\"\")","v":-1.8820000000000014},null,{"$f":"Январь[[#This Row],[Дата]]","v":"2018-01-16"},null,null,null,null,null,null,null,{"$f":"Январь[[#This Row],[Дата]]","v":"2018-01-16"}]
[{"$f":"IFERROR(DATEVALUE((COUNT($A$6:A22)+1)&$P$1&$I$4),\"\")","v":"2018-01-17"},"Никляев В.А.",209236,209489,{"$f":"Январь[[#This Row],[Показание одометра машины на конец дня, км]]-Январь[[#This Row],[Показание одометра машины на начало дня, км]]+T23","v":253},{"$f":"SUMPRODUCT([1]январь!$E$4:$E$153*([1]январь!$G$4:$G$153=$O$4)*([1]январь!$D$4:$D$153=Январь[[#This Row],[Дата]]))","v":0},{"$f":"IF(Январь[[#This Row],[Дата]]=\"\",\"\",M22)","v":328},633,636,{"$f":"IF(W23=\"\",Январь[[#This Row],[Показание счетчика моточасов  спецоборудования на конец дня, м/ч]],Январь[[#This Row],[Показание счетчика моточасов  спецоборудования на конец дня, м/ч]]+1)-Январь[[#This Row],[Показание счетчика моточасов спецоборудования на начало дня, м/ч]]","v":3},3,{"$f":"IF(Январь[[#This Row],[Работа спецоборудования за день, м/ч]]=\"\",\"\",Январь[[#This Row],[Работа спецоборудования за день, м/ч]]*$Z$2)","v":18.150000000000002},{"$f":"IF(VLOOKUP([Дата],S$2:U$3,3),IFERROR(IF(U23=\"\",Январь[[#This Row],[Выдано топливо, литр]],Январь[[#This Row],[Выдано топливо, литр]]+U23)+Январь[[#This Row],[Остаток топлива в баке на начало дня, литр]]-Январь[[#This Row],[Фактический расход топлива, литр]],\"\"),\"\")","v":192},{"$f":"ROUND((Январь[[#This Row],[Пройдено за день, км]]*0.01*$Y$2+Январь[[#This Row],[Расход топлива на работу спецоборудования, литр]]),3)+X23","v":148.56100000000001},{"$f":"ROUND(Январь[[#This Row],[Расход топлива по норме, литр]]/VLOOKUP([Дата],S$2:W$4,5),0)+Y23","v":136},{"$f":"IFERROR(Январь[[#This Row],[Фактический расход топлива, литр]]-Январь[[#This Row],[Расход топлива по норме, литр]],\"\")","v":-12.561000000000007},null,{"$f":"Январь[[#This Row],[Дата]]","v":"2018-01-17"},null,null,null,null,null,null,1,{"$f":"Январь[[#This Row],[Дата]]","v":"2018-01-17"}]
[{"$f":"IFERROR(DATEVALUE((COUNT($A$6:A23)+1)&$P$1&$I$4),\"\")","v":"2018-01-18"},"Никляев В.А.",209489,209516,{"$f":"Январь[[#This Row],[Показание одометра машины на конец дня, км]]-Январь[[#This Row],[Показание одометра машины на начало дня, км]]+T24","v":27},{"$f":"SUMPRODUCT([1]январь!$E$4:$E$153*([1]январь!$G$4:$G$153=$O$4)*([1]январь!$D$4:$D$153=Январь[[#This Row],[Дата]]))","v":380},{"$f":"IF(Январь[[#This Row],[Дата]]=\"\",\"\",M23)","v":192},636,638,{"$f":"IF(W24=\"\",Январь[[#This Row],[Показание счетчика моточасов  спецоборудования на конец дня, м/ч]],Январь[[#This Row],[Показание счетчика моточасов  спецоборудования на конец дня, м/ч]]+1)-Январь[[#This Row],[Показание счетчика моточасов спецоборудования на начало дня, м/ч]]","v":2},1,{"$f":"IF(Январь[[#This Row],[Работа спецоборудования за день, м/ч]]=\"\",\"\",Январь[[#This Row],[Работа спецоборудования за день, м/ч]]*$Z$2)","v":12.100000000000001},{"$f":"IF(VLOOKUP([Дата],S$2:U$3,3),IFERROR(IF(U24=\"\",Январь[[#This Row],[Выдано топливо, литр]],Январь[[#This Row],[Выдано топливо, литр]]+U24)+Январь[[#This Row],[Остаток топлива в баке на начало дня, литр]]-Январь[[#This Row],[Фактический расход топлива, литр]],\"\"),\"\")","v":500},{"$f":"ROUND((Январь[[#This Row],[Пройдено за день, км]]*0.01*$Y$2+Январь[[#This Row],[Расход топлива на работу спецоборудования, литр]]),3)+X24","v":26.016999999999999},{"$f":"ROUND(Январь[[#This Row],[Расход топлива по норме, литр]]/VLOOKUP([Дата],S$2:W$4,5),0)+Y24","v":22},{"$f":"IFERROR(Январь[[#This Row],[Фактический расход топлива, литр]]-Январь[[#This Row],[Расход топлива по норме, литр]],\"\")","v":-4.0169999999999995},null,{"$f":"Январь[[#This Row],[Дата]]","v":"2018-01-18"},null,null,-50,null,null,null,-2,{"$f":"Январь[[#This Row],[Дата]]","v":"2018-01-18"}]
[{"$f":"IFERROR(DATEVALUE((COUNT($A$6:A24)+1)&$P$1&$I$4),\"\")","v":"2018-01-19"},"Никляев В.А.",209516,209618,{"$f":"Январь[[#This Row],[Показание одометра машины на конец дня, км]]-Январь[[#This Row],[Показание одометра машины на начало дня, км]]+T25","v":102},{"$f":"SUMPRODUCT([1]январь!$E$4:$E$153*([1]январь!$G$4:$G$153=$O$4)*([1]январь!$D$4:$D$153=Январь[[#This Row],[Дата]]))","v":0},{"$f":"IF(Январь[[#This Row],[Дата]]=\"\",\"\",M24)","v":500},638,640,{"$f":"IF(W25=\"\",Январь[[#This Row],[Показание счетчика моточасов  спецоборудования на конец дня, м/ч]],Январь[[#This Row],[Показание счетчика моточасов  спецоборудования на конец дня, м/ч]]+1)-Январь[[#This Row],[Показание счетчика моточасов спецоборудования на начало дня, м/ч]]","v":2},1,{"$f":"IF(Январь[[#This Row],[Работа спецоборудования за день, м/ч]]=\"\",\"\",Январь[[#This Row],[Работа спецоборудования за день, м/ч]]*$Z$2)","v":12.100000000000001},{"$f":"IF(VLOOKUP([Дата],S$2:U$3,3),IFERROR(IF(U25=\"\",Январь[[#This Row],[Выдано топливо, литр]],Январь[[#This Row],[Выдано топливо, литр]]+U25)+Январь[[#This Row],[Остаток топлива в баке на начало дня, литр]]-Январь[[#This Row],[Фактический расход топлива, литр]],\"\"),\"\")","v":441},{"$f":"ROUND((Январь[[#This Row],[Пройдено за день, км]]*0.01*$Y$2+Январь[[#This Row],[Расход топлива на работу спецоборудования, литр]]),3)+X25","v":64.677000000000007},{"$f":"ROUND(Январь[[#This Row],[Расход топлива по норме, литр]]/VLOOKUP([Дата],S$2:W$4,5),0)+Y25","v":59},{"$f":"IFERROR(Январь[[#This Row],[Фактический расход топлива, литр]]-Январь[[#This Row],[Расход топлива по норме, литр]],\"\")","v":-5.6770000000000067},null,{"$f":"Январь[[#This Row],[Дата]]","v":"2018-01-19"},null,null,null,null,null,null,null,{"$f":"Январь[[#This Row],[Дата]]","v":"2018-01-19"}]
[{"$f":"IFERROR(DATEVALUE((COUNT($A$6:A25)+1)&$P$1&$I$4),\"\")","v":"2018-01-20"},null,209618,209618,{"$f":"Январь[[#This Row],[Показание одометра машины на конец дня, км]]-Январь[[#This Row],[Показание одометра машины на начало дня, км]]+T26","v":0},{"$f":"SUMPRODUCT([1]январь!$E$4:$E$153*([1]январь!$G$4:$G$153=$O$4)*([1]январь!$D$4:$D$153=Январь[[#This Row],[Дата]]))","v":0},{"$f":"IF(Январь[[#This Row],[Дата]]=\"\",\"\",M25)","v":441},640,640,{"$f":"IF(W26=\"\",Январь[[#This Row],[Показание счетчика моточасов  спецоборудования на конец дня, м/ч]],Январь[[#This Row],[Показание счетчика моточасов  спецоборудования на конец дня, м/ч]]+1)-Январь[[#This Row],[Показание счетчика моточасов спецоборудования на начало дня, м/ч]]","v":0},0,{"$f":"IF(Январь[[#This Row],[Работа спецоборудования за день, м/ч]]=\"\",\"\",Январь[[#This Row],[Работа спецоборудования за день, м/ч]]*$Z$2)","v":0},{"$f":"IF(VLOOKUP([Дата],S$2:U$3,3),IFERROR(IF(U26=\"\",Январь[[#This Row],[Выдано топливо, литр]],Январь[[#This Row],[Выдано топливо, литр]]+U26)+Январь[[#This Row],[Остаток топлива в баке на начало дня, литр]]-Январь[[#This Row],[Фактический расход топлива, литр]],\"\"),\"\")","v":441},{"$f":"ROUND((Январь[[#This Row],[Пройдено за день, км]]*0.01*$Y$2+Январь[[#This Row],[Расход топлива на работу спецоборудования, литр]]),3)+X26","v":0},{"$f":"ROUND(Январь[[#This Row],[Расход топлива по норме, литр]]/VLOOKUP([Дата],S$2:W$4,5),0)+Y26","v":0},{"$f":"IFERROR(Январь[[#This Row],[Фактический расход топлива, литр]]-Январь[[#This Row],[Расход топлива по норме, литр]],\"\")","v":0},null,{"$f":"Январь[[#This Row],[Дата]]","v":"2018-01-20"},null,null,null,null,null,null,null,{"$f":"Январь[[#This Row],[Дата]]","v":"2018-01-20"}]
[{"$f":"IFERROR(DATEVALUE((COUNT($A$6:A26)+1)&$P$1&$I$4),\"\")","v":"2018-01-21"},"Никляев В.А.",209618,209646,{"$f":"Январь[[#This Row],[Показание одометра машины на конец дня, км]]-Январь[[#This Row],[Показание одометра машины на начало дня, км]]+T27","v":28},{"$f":"SUMPRODUCT([1]январь!$E$4:$E$153*([1]январь!$G$4:$G$153=$O$4)*([1]январь!$D$4:$D$153=Январь[[#This Row],[Дата]]))","v":0},{"$f":"IF(Январь[[#This Row],[Дата]]=\"\",\"\",M26)","v":441},640,643,{"$f":"IF(W27=\"\",Январь[[#This Row],[Показание счетчика моточасов  спецоборудования на конец дня, м/ч]],Январь[[#This Row],[Показание счетчика моточасов  спецоборудования на конец дня, м/ч]]+1)-Январь[[#This Row],[Показание счетчика моточасов спецоборудования на начало дня, м/ч]]","v":3},2,{"$f":"IF(Январь[[#This Row],[Работа спецоборудования за день, м/ч]]=\"\",\"\",Январь[[#This Row],[Работа спецоборудования за день, м/ч]]*$Z$2)","v":18.150000000000002},{"$f":"IF(VLOOKUP([Дата],S$2:U$3,3),IFERROR(IF(U27=\"\",Январь[[#This Row],[Выдано топливо, литр]],Январь[[#This Row],[Выдано топливо, литр]]+U27)+Январь[[#This Row],[Остаток топлива в баке на начало дня, литр]]-Январь[[#This Row],[Фактический расход топлива, литр]],\"\"),\"\")","v":411},{"$f":"ROUND((Январь[[#This Row],[Пройдено за день, км]]*0.01*$Y$2+Январь[[#This Row],[Расход топлива на работу спецоборудования, литр]]),3)+X27","v":32.582999999999998},{"$f":"ROUND(Январь[[#This Row],[Расход топлива по норме, литр]]/VLOOKUP([Дата],S$2:W$4,5),0)+Y27","v":30},{"$f":"IFERROR(Январь[[#This Row],[Фактический расход топлива, литр]]-Январь[[#This Row],[Расход топлива по норме, литр]],\"\")","v":-2.5829999999999984},null,{"$f":"Январь[[#This Row],[Дата]]","v":"2018-01-21"},null,null,null,null,null,null,null,{"$f":"Январь[[#This Row],[Дата]]","v":"2018-01-21"}]
[{"$f":"IFERROR(DATEVALUE((COUNT($A$6:A27)+1)&$P$1&$I$4),\"\")","v":"2018-01-22"},"Никляев В.А.",209646,209695,{"$f":"Январь[[#This Row],[Показание одометра машины на конец дня, км]]-Январь[[#This Row],[Показание одометра машины на начало дня, км]]+T28","v":49},{"$f":"SUMPRODUCT([1]январь!$E$4:$E$153*([1]январь!$G$4:$G$153=$O$4)*([1]январь!$D$4:$D$153=Январь[[#This Row],[Дата]]))","v":0},{"$f":"IF(Январь[[#This Row],[Дата]]=\"\",\"\",M27)","v":411},643,645,{"$f":"IF(W28=\"\",Январь[[#This Row],[Показание счетчика моточасов  спецоборудования на конец дня, м/ч]],Январь[[#This Row],[Показание счетчика моточасов  спецоборудования на конец дня, м/ч]]+1)-Январь[[#This Row],[Показание счетчика моточасов спецоборудования на начало дня, м/ч]]","v":2},1,{"$f":"IF(Январь[[#This Row],[Работа спецоборудования за день, м/ч]]=\"\",\"\",Январь[[#This Row],[Работа спецоборудования за день, м/ч]]*$Z$2)","v":12.100000000000001},{"$f":"IF(VLOOKUP([Дата],S$2:U$3,3),IFERROR(IF(U28=\"\",Январь[[#This Row],[Выдано топливо, литр]],Январь[[#This Row],[Выдано топливо, литр]]+U28)+Январь[[#This Row],[Остаток топлива в баке на начало дня, литр]]-Январь[[#This Row],[Фактический расход топлива, литр]],\"\"),\"\")","v":377},{"$f":"ROUND((Январь[[#This Row],[Пройдено за день, км]]*0.01*$Y$2+Январь[[#This Row],[Расход топлива на работу спецоборудования, литр]]),3)+X28","v":37.357999999999997},{"$f":"ROUND(Январь[[#This Row],[Расход топлива по норме, литр]]/VLOOKUP([Дата],S$2:W$4,5),0)+Y28","v":34},{"$f":"IFERROR(Январь[[#This Row],[Фактический расход топлива, литр]]-Январь[[#This Row],[Расход топлива по норме, литр]],\"\")","v":-3.357999999999997},null,{"$f":"Январь[[#This Row],[Дата]]","v":"2018-01-22"},null,null,null,null,null,null,null,{"$f":"Январь[[#This Row],[Дата]]","v":"2018-01-22"}]
[{"$f":"IFERROR(DATEVALUE((COUNT($A$6:A28)+1)&$P$1&$I$4),\"\")","v":"2018-01-23"},"Никляев В.А.",209695,209719,{"$f":"Январь[[#This Row],[Показание одометра машины на конец дня, км]]-Январь[[#This Row],[Показание одометра машины на начало дня, км]]+T29","v":24},{"$f":"SUMPRODUCT([1]январь!$E$4:$E$153*([1]январь!$G$4:$G$153=$O$4)*([1]январь!$D$4:$D$153=Январь[[#This Row],[Дата]]))","v":0},{"$f":"IF(Январь[[#This Row],[Дата]]=\"\",\"\",M28)","v":377},645,647,{"$f":"IF(W29=\"\",Январь[[#This Row],[Показание счетчика моточасов  спецоборудования на конец дня, м/ч]],Январь[[#This Row],[Показание счетчика моточасов  спецоборудования на конец дня, м/ч]]+1)-Январь[[#This Row],[Показание счетчика моточасов спецоборудования на начало дня, м/ч]]","v":2},1,{"$f":"IF(Январь[[#This Row],[Работа спецоборудования за день, м/ч]]=\"\",\"\",Январь[[#This Row],[Работа спецоборудования за день, м/ч]]*$Z$2)","v":12.100000000000001},{"$f":"IF(VLOOKUP([Дата],S$2:U$3,3),IFERROR(IF(U29=\"\",Январь[[#This Row],[Выдано топливо, литр]],Январь[[#This Row],[Выдано топливо, литр]]+U29)+Январь[[#This Row],[Остаток топлива в баке на начало дня, литр]]-Январь[[#This Row],[Фактический расход топлива, литр]],\"\"),\"\")","v":355},{"$f":"ROUND((Январь[[#This Row],[Пройдено за день, км]]*0.01*$Y$2+Январь[[#This Row],[Расход топлива на работу спецоборудования, литр]]),3)+X29","v":24.471},{"$f":"ROUND(Январь[[#This Row],[Расход топлива по норме, литр]]/VLOOKUP([Дата],S$2:W$4,5),0)+Y29","v":22},{"$f":"IFERROR(Январь[[#This Row],[Фактический расход топлива, литр]]-Январь[[#This Row],[Расход топлива по норме, литр]],\"\")","v":-2.4710000000000001},null,{"$f":"Январь[[#This Row],[Дата]]","v":"2018-01-23"},null,null,null,null,null,null,null,{"$f":"Январь[[#This Row],[Дата]]","v":"2018-01-23"}]
[{"$f":"IFERROR(DATEVALUE((COUNT($A$6:A29)+1)&$P$1&$I$4),\"\")","v":"2018-01-24"},"Никляев В.А.",209719,210061,{"$f":"Январь[[#This Row],[Показание одометра машины на конец дня, км]]-Январь[[#This Row],[Показание одометра машины на начало дня, км]]+T30","v":342},{"$f":"SUMPRODUCT([1]январь!$E$4:$E$153*([1]январь!$G$4:$G$153=$O$4)*([1]январь!$D$4:$D$153=Январь[[#This Row],[Дата]]))","v":0},{"$f":"IF(Январь[[#This Row],[Дата]]=\"\",\"\",M29)","v":355},647,651,{"$f":"IF(W30=\"\",Январь[[#This Row],[Показание счетчика моточасов  спецоборудования на конец дня, м/ч]],Январь[[#This Row],[Показание счетчика моточасов  спецоборудования на конец дня, м/ч]]+1)-Январь[[#This Row],[Показание счетчика моточасов спецоборудования на начало дня, м/ч]]","v":4},2,{"$f":"IF(Январь[[#This Row],[Работа спецоборудования за день, м/ч]]=\"\",\"\",Январь[[#This Row],[Работа спецоборудования за день, м/ч]]*$Z$2)","v":24.200000000000003},{"$f":"IF(VLOOKUP([Дата],S$2:U$3,3),IFERROR(IF(U30=\"\",Январь[[#This Row],[Выдано топливо, литр]],Январь[[#This Row],[Выдано топливо, литр]]+U30)+Январь[[#This Row],[Остаток топлива в баке на начало дня, литр]]-Январь[[#This Row],[Фактический расход топлива, литр]],\"\"),\"\")","v":173},{"$f":"ROUND((Январь[[#This Row],[Пройдено за день, км]]*0.01*$Y$2+Январь[[#This Row],[Расход топлива на работу спецоборудования, литр]]),3)+X30","v":200.48699999999999},{"$f":"ROUND(Январь[[#This Row],[Расход топлива по норме, литр]]/VLOOKUP([Дата],S$2:W$4,5),0)+Y30","v":182},{"$f":"IFERROR(Январь[[#This Row],[Фактический расход топлива, литр]]-Январь[[#This Row],[Расход топлива по норме, литр]],\"\")","v":-18.486999999999995},null,{"$f":"Январь[[#This Row],[Дата]]","v":"2018-01-24"},null,null,null,null,null,null,null,{"$f":"Январь[[#This Row],[Дата]]","v":"2018-01-24"}]
[{"$f":"IFERROR(DATEVALUE((COUNT($A$6:A30)+1)&$P$1&$I$4),\"\")","v":"2018-01-25"},"Никляев В.А.",210061,210300,{"$f":"Январь[[#This Row],[Показание одометра машины на конец дня, км]]-Январь[[#This Row],[Показание одометра машины на начало дня, км]]+T31","v":239},{"$f":"SUMPRODUCT([1]январь!$E$4:$E$153*([1]январь!$G$4:$G$153=$O$4)*([1]январь!$D$4:$D$153=Январь[[#This Row],[Дата]]))","v":300},{"$f":"IF(Январь[[#This Row],[Дата]]=\"\",\"\",M30)","v":173},651,656,{"$f":"IF(W31=\"\",Январь[[#This Row],[Показание счетчика моточасов  спецоборудования на конец дня, м/ч]],Январь[[#This Row],[Показание счетчика моточасов  спецоборудования на конец дня, м/ч]]+1)-Январь[[#This Row],[Показание счетчика моточасов спецоборудования на начало дня, м/ч]]","v":5},3,{"$f":"IF(Январь[[#This Row],[Работа спецоборудования за день, м/ч]]=\"\",\"\",Январь[[#This Row],[Работа спецоборудования за день, м/ч]]*$Z$2)","v":30.250000000000004},{"$f":"IF(VLOOKUP([Дата],S$2:U$3,3),IFERROR(IF(U31=\"\",Январь[[#This Row],[Выдано топливо, литр]],Январь[[#This Row],[Выдано топливо, литр]]+U31)+Январь[[#This Row],[Остаток топлива в баке на начало дня, литр]]-Январь[[#This Row],[Фактический расход топлива, литр]],\"\"),\"\")","v":334},{"$f":"ROUND((Январь[[#This Row],[Пройдено за день, км]]*0.01*$Y$2+Январь[[#This Row],[Расход топлива на работу спецоборудования, литр]]),3)+X31","v":153.44499999999999},{"$f":"ROUND(Январь[[#This Row],[Расход топлива по норме, литр]]/VLOOKUP([Дата],S$2:W$4,5),0)+Y31","v":139},{"$f":"IFERROR(Январь[[#This Row],[Фактический расход топлива, литр]]-Январь[[#This Row],[Расход топлива по норме, литр]],\"\")","v":-14.444999999999993},null,{"$f":"Январь[[#This Row],[Дата]]","v":"2018-01-25"},null,null,null,null,null,null,null,{"$f":"Январь[[#This Row],[Дата]]","v":"2018-01-25"}]
[{"$f":"IFERROR(DATEVALUE((COUNT($A$6:A31)+1)&$P$1&$I$4),\"\")","v":"2018-01-26"},"Никляев В.А.",210300,210327,{"$f":"Январь[[#This Row],[Показание одометра машины на конец дня, км]]-Январь[[#This Row],[Показание одометра машины на начало дня, км]]+T32","v":27},{"$f":"SUMPRODUCT([1]январь!$E$4:$E$153*([1]январь!$G$4:$G$153=$O$4)*([1]январь!$D$4:$D$153=Январь[[#This Row],[Дата]]))","v":0},{"$f":"IF(Январь[[#This Row],[Дата]]=\"\",\"\",M31)","v":334},656,658,{"$f":"IF(W32=\"\",Январь[[#This Row],[Показание счетчика моточасов  спецоборудования на конец дня, м/ч]],Январь[[#This Row],[Показание счетчика моточасов  спецоборудования на конец дня, м/ч]]+1)-Январь[[#This Row],[Показание счетчика моточасов спецоборудования на начало дня, м/ч]]","v":2},1,{"$f":"IF(Январь[[#This Row],[Работа спецоборудования за день, м/ч]]=\"\",\"\",Январь[[#This Row],[Работа спецоборудования за день, м/ч]]*$Z$2)","v":12.100000000000001},{"$f":"IF(VLOOKUP([Дата],S$2:U$3,3),IFERROR(IF(U32=\"\",Январь[[#This Row],[Выдано топливо, литр]],Январь[[#This Row],[Выдано топливо, литр]]+U32)+Январь[[#This Row],[Остаток топлива в баке на начало дня, литр]]-Январь[[#This Row],[Фактический расход топлива, литр]],\"\"),\"\")","v":310},{"$f":"ROUND((Январь[[#This Row],[Пройдено за день, км]]*0.01*$Y$2+Январь[[#This Row],[Расход топлива на работу спецоборудования, литр]]),3)+X32","v":26.016999999999999},{"$f":"ROUND(Январь[[#This Row],[Расход топлива по норме, литр]]/VLOOKUP([Дата],S$2:W$4,5),0)+Y32","v":24},{"$f":"IFERROR(Январь[[#This Row],[Фактический расход топлива, литр]]-Январь[[#This Row],[Расход топлива по норме, литр]],\"\")","v":-2.0169999999999995},null,{"$f":"Январь[[#This Row],[Дата]]","v":"2018-01-26"},null,null,null,null,null,null,null,{"$f":"Январь[[#This Row],[Дата]]","v":"2018-01-26"}]
[{"$f":"IFERROR(DATEVALUE((COUNT($A$6:A32)+1)&$P$1&$I$4),\"\")","v":"2018-01-27"},"Никляев В.А.",210327,210354,{"$f":"Январь[[#This Row],[Показание одометра машины на конец дня, км]]-Январь[[#This Row],[Показание одометра машины на начало дня, км]]+T33","v":27},{"$f":"SUMPRODUCT([1]январь!$E$4:$E$153*([1]январь!$G$4:$G$153=$O$4)*([1]январь!$D$4:$D$153=Январь[[#This Row],[Дата]]))","v":0},{"$f":"IF(Январь[[#This Row],[Дата]]=\"\",\"\",M32)","v":310},658,660,{"$f":"IF(W33=\"\",Январь[[#This Row],[Показание счетчика моточасов  спецоборудования на конец дня, м/ч]],Январь[[#This Row],[Показание счетчика моточасов  спецоборудования на конец дня, м/ч]]+1)-Январь[[#This Row],[Показание счетчика моточасов спецоборудования на начало дня, м/ч]]","v":2},1,{"$f":"IF(Январь[[#This Row],[Работа спецоборудования за день, м/ч]]=\"\",\"\",Январь[[#This Row],[Работа спецоборудования за день, м/ч]]*$Z$2)","v":12.100000000000001},{"$f":"IF(VLOOKUP([Дата],S$2:U$3,3),IFERROR(IF(U33=\"\",Январь[[#This Row],[Выдано топливо, литр]],Январь[[#This Row],[Выдано топливо, литр]]+U33)+Январь[[#This Row],[Остаток топлива в баке на начало дня, литр]]-Январь[[#This Row],[Фактический расход топлива, литр]],\"\"),\"\")","v":286},{"$f":"ROUND((Январь[[#This Row],[Пройдено за день, км]]*0.01*$Y$2+Январь[[#This Row],[Расход топлива на работу спецоборудования, литр]]),3)+X33","v":26.016999999999999},{"$f":"ROUND(Январь[[#This Row],[Расход топлива по норме, литр]]/VLOOKUP([Дата],S$2:W$4,5),0)+Y33","v":24},{"$f":"IFERROR(Январь[[#This Row],[Фактический расход топлива, литр]]-Январь[[#This Row],[Расход топлива по норме, литр]],\"\")","v":-2.0169999999999995},null,{"$f":"Январь[[#This Row],[Дата]]","v":"2018-01-27"},null,null,null,null,null,null,null,{"$f":"Январь[[#This Row],[Дата]]","v":"2018-01-27"}]
[{"$f":"IFERROR(DATEVALUE((COUNT($A$6:A33)+1)&$P$1&$I$4),\"\")","v":"2018-01-28"},"Никляев В.А.",210354,210448,{"$f":"Январь[[#This Row],[Показание одометра машины на конец дня, км]]-Январь[[#This Row],[Показание одометра машины на начало дня, км]]+T34","v":94},{"$f":"SUMPRODUCT([1]январь!$E$4:$E$153*([1]январь!$G$4:$G$153=$O$4)*([1]январь!$D$4:$D$153=Январь[[#This Row],[Дата]]))","v":0},{"$f":"IF(Январь[[#This Row],[Дата]]=\"\",\"\",M33)","v":286},660,665,{"$f":"IF(W34=\"\",Январь[[#This Row],[Показание счетчика моточасов  спецоборудования на конец дня, м/ч]],Январь[[#This Row],[Показание счетчика моточасов  спецоборудования на конец дня, м/ч]]+1)-Январь[[#This Row],[Показание счетчика моточасов спецоборудования на начало дня, м/ч]]","v":5},3,{"$f":"IF(Январь[[#This Row],[Работа спецоборудования за день, м/ч]]=\"\",\"\",Январь[[#This Row],[Работа спецоборудования за день, м/ч]]*$Z$2)","v":30.250000000000004},{"$f":"IF(VLOOKUP([Дата],S$2:U$3,3),IFERROR(IF(U34=\"\",Январь[[#This Row],[Выдано топливо, литр]],Январь[[#This Row],[Выдано топливо, литр]]+U34)+Январь[[#This Row],[Остаток топлива в баке на начало дня, литр]]-Январь[[#This Row],[Фактический расход топлива, литр]],\"\"),\"\")","v":215},{"$f":"ROUND((Январь[[#This Row],[Пройдено за день, км]]*0.01*$Y$2+Январь[[#This Row],[Расход топлива на работу спецоборудования, литр]]),3)+X34","v":78.703000000000003},{"$f":"ROUND(Январь[[#This Row],[Расход топлива по норме, литр]]/VLOOKUP([Дата],S$2:W$4,5),0)+Y34","v":71},{"$f":"IFERROR(Январь[[#This Row],[Фактический расход топлива, литр]]-Январь[[#This Row],[Расход топлива по норме, литр]],\"\")","v":-7.703000000000003},null,{"$f":"Январь[[#This Row],[Дата]]","v":"2018-01-28"},null,null,null,null,null,null,null,{"$f":"Январь[[#This Row],[Дата]]","v":"2018-01-28"}]
[{"$f":"IFERROR(DATEVALUE((COUNT($A$6:A34)+1)&$P$1&$I$4),\"\")","v":"2018-01-29"},"Никляев В.А.",210448,210582,{"$f":"Январь[[#This Row],[Показание одометра машины на конец дня, км]]-Январь[[#This Row],[Показание одометра машины на начало дня, км]]+T35","v":134},{"$f":"SUMPRODUCT([1]январь!$E$4:$E$153*([1]январь!$G$4:$G$153=$O$4)*([1]январь!$D$4:$D$153=Январь[[#This Row],[Дата]]))","v":370},{"$f":"IF(Январь[[#This Row],[Дата]]=\"\",\"\",M34)","v":215},665,667,{"$f":"IF(W35=\"\",Январь[[#This Row],[Показание счетчика моточасов  спецоборудования на конец дня, м/ч]],Январь[[#This Row],[Показание счетчика моточасов  спецоборудования на конец дня, м/ч]]+1)-Январь[[#This Row],[Показание счетчика моточасов спецоборудования на начало дня, м/ч]]","v":2},3,{"$f":"IF(Январь[[#This Row],[Работа спецоборудования за день, м/ч]]=\"\",\"\",Январь[[#This Row],[Работа спецоборудования за день, м/ч]]*$Z$2)","v":12.100000000000001},{"$f":"IF(VLOOKUP([Дата],S$2:U$3,3),IFERROR(IF(U35=\"\",Январь[[#This Row],[Выдано топливо, литр]],Январь[[#This Row],[Выдано топливо, литр]]+U35)+Январь[[#This Row],[Остаток топлива в баке на начало дня, литр]]-Январь[[#This Row],[Фактический расход топлива, литр]],\"\"),\"\")","v":343},{"$f":"ROUND((Январь[[#This Row],[Пройдено за день, км]]*0.01*$Y$2+Январь[[#This Row],[Расход топлива на работу спецоборудования, литр]]),3)+X35","v":81.171999999999997},{"$f":"ROUND(Январь[[#This Row],[Расход топлива по норме, литр]]/VLOOKUP([Дата],S$2:W$4,5),0)+Y35","v":74},{"$f":"IFERROR(Январь[[#This Row],[Фактический расход топлива, литр]]-Январь[[#This Row],[Расход топлива по норме, литр]],\"\")","v":-7.171999999999997},null,{"$f":"Январь[[#This Row],[Дата]]","v":"2018-01-29"},null,null,-168,null,null,null,null,{"$f":"Январь[[#This Row],[Дата]]","v":"2018-01-29"}]
[{"$f":"IFERROR(DATEVALUE((COUNT($A$6:A35)+1)&$P$1&$I$4),\"\")","v":"2018-01-30"},"Никляев В.А.",210582,210696,{"$f":"Январь[[#This Row],[Показание одометра машины на конец дня, км]]-Январь[[#This Row],[Показание одометра машины на начало дня, км]]+T36","v":126},{"$f":"SUMPRODUCT([1]январь!$E$4:$E$153*([1]январь!$G$4:$G$153=$O$4)*([1]январь!$D$4:$D$153=Январь[[#This Row],[Дата]]))","v":0},{"$f":"IF(Январь[[#This Row],[Дата]]=\"\",\"\",M35)","v":343},667,670,{"$f":"IF(W36=\"\",Январь[[#This Row],[Показание счетчика моточасов  спецоборудования на конец дня, м/ч]],Январь[[#This Row],[Показание счетчика моточасов  спецоборудования на конец дня, м/ч]]+1)-Январь[[#This Row],[Показание счетчика моточасов спецоборудования на начало дня, м/ч]]","v":3},2,{"$f":"IF(Январь[[#This Row],[Работа спецоборудования за день, м/ч]]=\"\",\"\",Январь[[#This Row],[Работа спецоборудования за день, м/ч]]*$Z$2)","v":18.150000000000002},{"$f":"IF(VLOOKUP([Дата],S$2:U$3,3),IFERROR(IF(U36=\"\",Январь[[#This Row],[Выдано топливо, литр]],Январь[[#This Row],[Выдано топливо, литр]]+U36)+Январь[[#This Row],[Остаток топлива в баке на начало дня, литр]]-Январь[[#This Row],[Фактический расход топлива, литр]],\"\"),\"\")","v":267},{"$f":"ROUND((Январь[[#This Row],[Пройдено за день, км]]*0.01*$Y$2+Январь[[#This Row],[Расход топлива на работу спецоборудования, литр]]),3)+X36","v":83.097999999999999},{"$f":"ROUND(Январь[[#This Row],[Расход топлива по норме, литр]]/VLOOKUP([Дата],S$2:W$4,5),0)+Y36","v":76},{"$f":"IFERROR(Январь[[#This Row],[Фактический расход топлива, литр]]-Январь[[#This Row],[Расход топлива по норме, литр]],\"\")","v":-7.097999999999999},null,{"$f":"Январь[[#This Row],[Дата]]","v":"2018-01-30"},null,12,null,null,null,null,1,{"$f":"Январь[[#This Row],[Дата]]","v":"2018-01-30"}]
[{"$f":"IFERROR(DATEVALUE((COUNT($A$6:A36)+1)&$P$1&$I$4),\"\")","v":"2018-01-31"},"Никляев В.А.",210696,210723,{"$f":"Январь[[#This Row],[Показание одометра машины на конец дня, км]]-Январь[[#This Row],[Показание одометра машины на начало дня, км]]+T37","v":27},{"$f":"SUMPRODUCT([1]январь!$E$4:$E$153*([1]январь!$G$4:$G$153=$O$4)*([1]январь!$D$4:$D$153=Январь[[#This Row],[Дата]]))","v":250},{"$f":"IF(Январь[[#This Row],[Дата]]=\"\",\"\",M36)","v":267},670,671,{"$f":"IF(W37=\"\",Январь[[#This Row],[Показание счетчика моточасов  спецоборудования на конец дня, м/ч]],Январь[[#This Row],[Показание счетчика моточасов  спецоборудования на конец дня, м/ч]]+1)-Январь[[#This Row],[Показание счетчика моточасов спецоборудования на начало дня, м/ч]]","v":1},1,{"$f":"IF(Январь[[#This Row],[Работа спецоборудования за день, м/ч]]=\"\",\"\",Январь[[#This Row],[Работа спецоборудования за день, м/ч]]*$Z$2)","v":6.0500000000000007},{"$f":"IF(VLOOKUP([Дата],S$2:U$3,3),IFERROR(IF(U37=\"\",Январь[[#This Row],[Выдано топливо, литр]],Январь[[#This Row],[Выдано топливо, литр]]+U37)+Январь[[#This Row],[Остаток топлива в баке на начало дня, литр]]-Январь[[#This Row],[Фактический расход топлива, литр]],\"\"),\"\")","v":500},{"$f":"ROUND((Январь[[#This Row],[Пройдено за день, км]]*0.01*$Y$2+Январь[[#This Row],[Расход топлива на работу спецоборудования, литр]]),3)+X37","v":19.97},{"$f":"ROUND(Январь[[#This Row],[Расход топлива по норме, литр]]/VLOOKUP([Дата],S$2:W$4,5),0)+Y37","v":17},{"$f":"IFERROR(Январь[[#This Row],[Фактический расход топлива, литр]]-Январь[[#This Row],[Расход топлива по норме, литр]],\"\")","v":-2.9699999999999989},null,{"$f":"Январь[[#This Row],[Дата]]","v":"2018-01-31"},null,null,null,null,null,3.0000000000000001E-3,-1,{"$f":"Январь[[#This Row],[Дата]]","v":"2018-01-31"}]
["Итог",null,null,null,{"$f":"SUBTOTAL(109,[Пройдено за день, км])","v":1711},{"$f":"SUBTOTAL(109,[Выдано топливо, литр])","v":1300},null,null,null,{"$f":"SUBTOTAL(109,[Работа спецоборудования за день, м/ч])","v":51},{"$f":"SUBTOTAL(109,[Количество ходок])","v":33},{"$f":"SUBTOTAL(109,[Расход топлива на работу спецоборудования, литр])","v":308.55},null,{"$f":"SUBTOTAL(109,[Расход топлива по норме, литр])","v":1190.5030000000002},{"$f":"SUBTOTAL(109,[Фактический расход топлива, литр])","v":1082},{"$f":"SUBTOTAL(109,[Отклонение от нормы (Перерасход(+), экономия(-)), литр])","v":-108.50299999999999},null,"1-я пол.",{"$f":"SUMIFS(S$7:S$37,INDIRECT(\"Январь[Дата]\"),\">=\"&$S$2,INDIRECT(\"Январь[Дата]\"),\"<=\"&$T$2)+IF(MONTH($T$2)<>MONTH($S$2),INDIRECT(TEXT($A$7-1,\"ММММ\")&\"!F38\")-SUM(INDIRECT(TEXT($A$7-1,\"ММММ\")&\"!V1:V2\")))","v":0},{"$f":"SUMIFS(T$7:T$37,INDIRECT(\"Январь[Дата]\"),\">=\"&$S$2,INDIRECT(\"Январь[Дата]\"),\"<=\"&$T$2)+IF(MONTH($T$2)<>MONTH($S$2),INDIRECT(TEXT($A$7-1,\"ММММ\")&\"!F38\")-SUM(INDIRECT(TEXT($A$7-1,\"ММММ\")&\"!V1:V2\")))","v":0},-50,0,0,0,-1,"1-я пол."]
[null,null,null,null,null,null,null,null,null,null,{"$f":"SUMIFS(K7:K37,A7:A37,\">=\"&$S$2,A7:A37,\"<=\"&$T$2)","v":12},null,null,null,null,null,null,"2-я пол.",{"$f":"SUMIFS(S$7:S$37,INDIRECT(\"Январь[Дата]\"),\">=\"&$S$3,INDIRECT(\"Январь[Дата]\"),\"<=\"&$T$3)+IF(MONTH($T$3)<>MONTH($S$3),INDIRECT(TEXT($A$7-1,\"ММММ\")&\"!F38\")-SUM(INDIRECT(TEXT($A$7-1,\"ММММ\")&\"!V1:V2\")))","v":0},{"$f":"SUMIFS(T$7:T$37,INDIRECT(\"Январь[Дата]\"),\">=\"&$S$3,INDIRECT(\"Январь[Дата]\"),\"<=\"&$T$3)+IF(MONTH($T$3)<>MONTH($S$3),INDIRECT(TEXT($A$7-1,\"ММММ\")&\"!F38\")-SUM(INDIRECT(TEXT($A$7-1,\"ММММ\")&\"!V1:V2\")))","v":12},-168,0,0,3.0000000000000001E-3,0,"2-я пол."]
[null,null,null,null,null,null,null,null,null,null,{"$f":"SUMIFS(K7:K37,A7:A37,\">=\"&$S$3,A7:A37,\"<=\"&$T$3)","v":21}]

{"sheet":"ТС","index":1,"n_rows":29,"n_cols":25,"rows_kept":29,"cut":false,"hidden":false,"merged":[[0,15,2,24],[2,6,2,7],[2,11,2,12]]}
[null,null,null,null,null,null,"Зима :","01.11 - 31.03",null,null,null,"Зима :","01.11 - 31.03",null,null,"Расчет максимальной нормы расхода ДТ (литр/100км)"]
[null,null,null,null,null,null,"Лето:","01.04 - 30.10",null,null,null,"Лето:","01.04 - 30.10"]
[null,null,null,null,null,null,"доп.коэфф-т к норме",null,null,null,null,"доп.коэфф-т к норме"]
["№ п/п","Номер гос.регистрации / Заводской номер","Километраж, км","Спецоборудование, м/ч","Топливо, л","Базовая норма расхода на 100 км","Зима","Лето","Итога норма а/м ЗИМА","Итога норма а/м ЛЕТО","Базовая норма расхода на 1 мото/час","\"Зима\"","\"Лето\"","Итога норма а/м \"ЗИМА\"","Итога норма а/м \"ЛЕТО\"","Норма на 100 км, литров","движение с манипулятором","Тоннаж","Литры","На движение с грузом","Тоннаж1","К-т загрузки","ИТОГ","25% за работу в городе с населением свыше 3 млн. человек","10 % за работу зимой"]
[1,"Норма 1",209024,620,500,46.86,10,0,{"$f":"F5*(100+G5)%","v":51.546000000000006},{"$f":"F5*(100+H5)%","v":46.86},5.5,10,0,{"$f":"K5*(100+L5)%","v":6.0500000000000007},{"$f":"K5*(100+M5)%","v":5.5},32.200000000000003,{"$f":"R5*S5","v":2.9379999999999997},2.2599999999999998,1.3,{"$f":"U5*V5*S5","v":5.2},8,0.5,{"$f":"P5+Q5+T5","v":40.338000000000008},{"$f":"W5*25%+W5","v":50.422500000000014},{"$f":"W5*10%+X5","v":54.456300000000013}]
[2,"Норма 2",null,null,500,{"$f":"F5-F5*5%","v":44.516999999999996},10,0,48.968699999999998,{"$f":"F6*(100+H6)%","v":44.516999999999996},{"$f":"K5-K5*5%","v":5.2249999999999996},10,0,5.7475000000000005,5.2249999999999996,32.200000000000003,2.9379999999999997,2.2599999999999998,1.3,5.2,8,0.5,40.338000000000008,50.422500000000014,54.456300000000013]
[3,"Норма 3",null,null,500,{"$f":"F5-F5*10%","v":42.173999999999999},10,0,46.391400000000004,42.173999999999999,{"$f":"K5-K5*10%","v":4.95},10,0,5.4450000000000003,4.95,32.200000000000003,2.9379999999999997,2.2599999999999998,1.3,5.2,8,0.5,40.338000000000008,50.422500000000014,54.456300000000013]
[]
[]
[]
[null,"Зима"]
[null,"Лето"]
[]
[null,"Январь"]
[null,"Февраль"]
[null,"Март"]
[null,"Апрель"]
[null,"Май"]
[null,"Июнь"]
[null,"Июль"]
[null,"Август"]
[null,"Сентябрь"]
[null,"Октябрь"]
[null,"Ноябрь"]
[null,"Декабрь"]
[]
[null,"Норма 1"]
[null,"Норма 2"]
[null,"Норма 3"]

{"sheet":"Сотрудники","index":2,"n_rows":5,"n_cols":2,"rows_kept":5,"cut":false,"hidden":false,"merged":[]}
[null,"Ф.И.О."]
[null,"Никляев В.А."]
[null,"Ильин А.Г."]
[null,"Малышев О.С."]
[null,"Кобалян М.В."]